fUST/lending_fUST_20250708
["ID","MTS","AMOUNT","RATE_DAILY","PERIOD"]
[370371407,1751983849019,-600.0,0.00019973,2]
[370371408,1751983849029,-500.0,0.00019973,2]
[370371409,1751983849038,-500.0,0.00019973,2]
[370371410,1751983849048,-500.0,0.00019973,2]
[370371411,1751983849057,-500.0,0.00019973,2]
[370371412,1751983849066,-500.0,0.00019973,2]
[370371413,1751983849076,-500.0,0.00019973,2]
[370371414,1751983849085,-500.0,0.00019973,2]
[370371415,1751983849095,-215.2437778,0.00019974,2]
[370371416,1751983849104,-230.51100374,0.00019974,2]
[370371417,1751983849114,-848.40570879,0.00019974,2]
[370371418,1751983849123,-160.0,0.00019974,2]
[370371419,1751983849137,-837.89306043,0.00019974,2]
[370371420,1751983849148,-160.0,0.00019974,2]
[370371421,1751983849158,-214.10276668,0.00019974,2]
[370371422,1751983849167,-1000.0,0.0001998,5]
[370371423,1751983849177,-160.0,0.0001999,2]
[370371424,1751983849187,-160.0,0.00019991,2]
[370371425,1751983849196,-12586.7184932,0.00019991,2]
[370371426,1751983849207,-160.0,0.00019991,2]
[370371427,1751983849217,-160.0,0.00019991,2]
[370371428,1751983849226,-160.0,0.00019991,2]
[370371429,1751983849236,-460.0,0.0002,2]
[370371430,1751983849245,-460.0,0.0002,2]
[370371431,1751983849255,-840.0,0.0002,2]
[370371432,1751983849264,-1000.0,0.0002,2]
[370371433,1751983849273,-460.0,0.0002,2]
[370371434,1751983849283,-460.0,0.0002,2]
[370371435,1751983849292,-608.54,0.0002,2]
[370371436,1751983849301,-471.73,0.0002,2]
[370371437,1751983849311,-460.0,0.0002,2]
[370371438,1751983849320,-460.0,0.0002,2]
[370371439,1751983849329,-460.0,0.0002,2]
[370371440,1751983849338,-460.0,0.0002,2]
[370371441,1751983849347,-498.7040194,0.0002,2]
[370371442,1751983849357,-205.83123797,0.0002,2]
[370371443,1751983849366,-460.0,0.0002,2]
[370371444,1751983849376,-551.19,0.0002,2]
[370371445,1751983849386,-460.0,0.0002,2]
[370371446,1751983849396,-460.0,0.0002,2]
[370371447,1751983849405,-460.0,0.0002,2]
[370371448,1751983849414,-958.86,0.0002,2]
[370371449,1751983849423,-460.0,0.0002,2]
[370371450,1751983849432,-636.73,0.0002,2]
[370371451,1751983849441,-460.0,0.0002,2]
[370371452,1751983849451,-460.0,0.0002,2]
[370371453,1751983849460,-769.3,0.0002,2]
[370371454,1751983849469,-460.0,0.0002,2]
[370371455,1751983849479,-460.0,0.0002,2]
[370371456,1751983849488,-638.06,0.0002,2]
[370371457,1751983849497,-460.0,0.0002,2]
[370371458,1751983849506,-460.0,0.0002,2]
[370371459,1751983849517,-460.0,0.0002,2]
[370371460,1751983849526,-1000.0,0.0002,5]
[370371461,1751983849535,-495.68,0.0002,2]
[370371462,1751983849544,-460.0,0.0002,2]
[370371463,1751983849554,-460.0,0.0002,2]
[370371464,1751983849563,-460.0,0.0002,2]
[370371465,1751983849572,-500.0,0.0002,2]
[370371466,1751983849582,-460.0,0.0002,2]
[370371467,1751983849591,-460.0,0.0002,2]
[370371468,1751983849600,-1163.67,0.0002,2]
[370371469,1751983849610,-460.0,0.0002,2]
[370371470,1751983849619,-460.0,0.0002,2]
[370371471,1751983849628,-460.0,0.0002,2]
[370371472,1751983849638,-460.0,0.0002,2]
[370371473,1751983849647,-460.0,0.0002,2]
[370371474,1751983849656,-593.12,0.0002,2]
[370371475,1751983849665,-460.0,0.0002,2]
[370371476,1751983849674,-756.52,0.0002,2]
[370371477,1751983849683,-574.13329487,0.0002,2]
[370371478,1751983849693,-460.0,0.0002,2]
[370371479,1751983849702,-460.0,0.0002,2]
[370371480,1751983849712,-488.13,0.0002,2]
[370371481,1751983849721,-317.63654239,0.0002,2]
[370371482,1751983849730,-1004.35,0.0002,2]
[370371483,1751983849739,-323.61,0.0002,2]
[370371484,1751983849749,-460.0,0.0002,2]
[370371485,1751983849758,-1589.41,0.0002,2]
[370371486,1751983849767,-460.0,0.0002,2]
[370371487,1751983849776,-460.0,0.0002,2]
[370371488,1751983849786,-460.0,0.0002,2]
[370371489,1751983849795,-460.00001425,0.0002,2]
[370371490,1751983849804,-460.0,0.0002,2]
[370371491,1751983849813,-460.0,0.0002,2]
[370371492,1751983849823,-460.0,0.0002,2]
[370371493,1751983849832,-2636.16,0.0002,2]
[370371494,1751983849841,-460.0,0.0002,2]
[370371495,1751983849851,-460.0,0.0002,2]
[370371496,1751983849861,-460.0,0.0002,2]
[370371497,1751983849870,-460.0,0.0002,2]
[370371498,1751983849880,-460.0,0.0002,2]
[370371499,1751983849889,-460.0,0.0002,2]
[370371500,1751983849899,-1295.21,0.0002,2]
[370371501,1751983849909,-178.22244555,0.0002,2]
[370371502,1751983849918,-460.0,0.0002,2]
[370371503,1751983849927,-503.5184965,0.0002,2]
[370371504,1751983849936,-6627.92,0.0002,2]
[370371505,1751983849946,-460.0,0.0002,2]
[370371506,1751983849955,-237.61530236,0.0002,2]
[370371507,1751983849964,-460.0,0.0002,2]
[370371508,1751983849973,-461.34,0.0002,2]
[370371509,1751983849983,-417.16,0.0002,2]
[370371510,1751983849992,-460.0,0.0002,2]
[370371511,1751983850001,-460.0,0.0002,2]
[370371512,1751983850011,-500.84,0.0002,2]
[370371513,1751983850020,-717.97,0.0002,2]
[370371514,1751983850030,-3262.07,0.0002,2]
[370371515,1751983850039,-460.0,0.0002,2]
[370371516,1751983850049,-460.0,0.0002,2]
[370371517,1751983850058,-460.0,0.0002,2]
[370371518,1751983850068,-1762.31,0.0002,2]
[370371519,1751983850078,-903.25,0.0002,2]
[370371520,1751983850087,-460.0,0.0002,2]
[370371521,1751983850097,-460.0,0.0002,2]
[370371522,1751983850108,-5827.89,0.0002,2]
[370371523,1751983850118,-460.0,0.0002,2]
[370371524,1751983850128,-933.44,0.0002,2]
[370371525,1751983850142,-1582.35,0.0002,2]
[370371526,1751983850154,-460.0,0.0002,2]
[370371527,1751983850163,-460.0,0.0002,2]
[370371528,1751983850172,-1015.36,0.0002,2]
[370371529,1751983850183,-586.86,0.0002,2]
[370371530,1751983850192,-460.0,0.0002,2]
[370371531,1751983850202,-460.0,0.0002,2]
[370371532,1751983850212,-884.84,0.0002,2]
[370371533,1751983850222,-850.53,0.0002,2]
[370371534,1751983850232,-460.0,0.0002,2]
[370371535,1751983850242,-460.0,0.0002,2]
[370371536,1751983850251,-460.0,0.0002,2]
[370371537,1751983850261,-460.0,0.0002,2]
[370371538,1751983850271,-460.0,0.0002,2]
[370371539,1751983850280,-460.0,0.0002,2]
[370371540,1751983850290,-944.75,0.0002,2]
[370371541,1751983850300,-604.48,0.0002,2]
[370371542,1751983850310,-1927.49,0.0002,2]
[370371543,1751983850319,-460.0,0.0002,2]
[370371544,1751983850328,-460.0,0.0002,2]
[370371545,1751983850338,-182.3428525,0.0002,2]
[370371546,1751983850347,-460.0,0.0002,2]
[370371547,1751983850356,-460.0,0.0002,2]
[370371548,1751983850366,-402.01257818,0.0002,2]
[370371549,1751983850376,-4200.32,0.0002,2]
[370371550,1751983850386,-460.0,0.0002,2]
[370371551,1751983850397,-460.0,0.0002,2]
[370371552,1751983850407,-1723.86,0.0002,2]
[370371553,1751983850417,-1105.47,0.0002,2]
[370371554,1751983850426,-1235.45,0.0002,2]
[370371555,1751983850436,-460.0,0.0002,2]
[370371556,1751983850445,-1392.07,0.0002,2]
[370371557,1751983850455,-460.0,0.0002,2]
[370371558,1751983850464,-460.0,0.0002,2]
[370371559,1751983850474,-460.0,0.0002,2]
[370371560,1751983850484,-4502.23,0.0002,2]
[370371561,1751983850493,-486.54,0.0002,2]
[370371562,1751983850503,-471.85,0.0002,2]
[370371563,1751983850513,-871.65,0.0002,2]
[370371564,1751983850522,-460.0,0.0002,2]
[370371565,1751983850532,-967.31,0.0002,2]
[370371566,1751983850541,-1518.02,0.0002,2]
[370371567,1751983850551,-460.0,0.0002,2]
[370371568,1751983850560,-6907.07,0.0002,2]
[370371569,1751983850570,-460.0,0.0002,2]
[370371570,1751983850579,-460.0,0.0002,2]
[370371571,1751983850589,-460.0,0.0002,2]
[370371572,1751983850601,-611.77,0.0002,2]
[370371573,1751983850611,-460.0,0.0002,2]
[370371574,1751983850620,-460.0,0.0002,2]
[370371575,1751983850629,-1153.7,0.0002,2]
[370371576,1751983850639,-1098.97,0.0002,2]
[370371577,1751983850651,-967.64,0.0002,2]
[370371578,1751983850661,-460.0,0.0002,2]
[370371579,1751983850670,-460.0,0.0002,2]
[370371580,1751983850680,-460.0,0.0002,2]
[370371581,1751983850689,-460.0,0.0002,2]
[370371582,1751983850699,-2085.57,0.0002,2]
[370371583,1751983850710,-460.0,0.0002,2]
[370371584,1751983850719,-463.65,0.0002,2]
[370371585,1751983850728,-2119.43,0.0002,2]
[370371586,1751983850738,-566.22,0.0002,2]
[370371587,1751983850747,-1205.75,0.0002,2]
[370371588,1751983850757,-460.0,0.0002,2]
[370371589,1751983850767,-1948.08,0.0002,2]
[370371590,1751983850777,-460.0,0.0002,2]
[370371591,1751983850786,-460.0,0.0002,2]
[370371592,1751983850796,-2272.9,0.0002,2]
[370371593,1751983850806,-4616.11,0.0002,2]
[370371594,1751983850816,-4247.65,0.0002,2]
[370371595,1751983850826,-460.0,0.0002,2]
[370371596,1751983850835,-514.3,0.0002,2]
[370371597,1751983850845,-944.07,0.0002,2]
[370371598,1751983850855,-295.87952164,0.0002,2]
[370371599,1751983850864,-653.52,0.0002,2]
[370371600,1751983850874,-847.56,0.0002,2]
[370371601,1751983850884,-460.0,0.0002,2]
[370371602,1751983850896,-8781.99,0.0002,2]
[370371603,1751983850906,-500.52,0.0002,2]
[370371604,1751983850915,-460.0,0.0002,2]
[370371605,1751983850925,-460.0,0.0002,2]
[370371606,1751983850935,-1078.93,0.0002,2]
[370371607,1751983850944,-1410.35,0.0002,2]
[370371608,1751983850954,-460.0,0.0002,2]
[370371609,1751983850964,-460.0,0.0002,2]
[370371610,1751983850974,-460.0,0.0002,2]
[370371611,1751983850984,-4842.26,0.0002,2]
[370371612,1751983850994,-1487.97,0.0002,2]
[370371613,1751983851004,-1632.92,0.0002,2]
[370371614,1751983851014,-1835.67,0.0002,2]
[370371615,1751983851023,-2207.44,0.0002,2]
[370371616,1751983851032,-460.0,0.0002,2]
[370371617,1751983851042,-460.0,0.0002,2]
[370371618,1751983851053,-460.0,0.0002,2]
[370371619,1751983851062,-460.0,0.0002,2]
[370371620,1751983851071,-460.0,0.0002,2]
[370371621,1751983851081,-1000.0,0.00020021,2]
[370371622,1751983851090,-259.0,0.00020021,2]
[370371623,1751983851099,-256.15863632,0.00020083,2]
[370371624,1751983851109,-170.987269,0.00020187,2]
[370371625,1751983851118,-259.0,0.00020217,2]
[370371626,1751983851127,-162.1290201,0.00020247,2]
[370371627,1751983851140,-1500.0,0.00020268,2]
[370371628,1751983851149,-1500.0,0.00020268,2]
[370371629,1751983851158,-1500.0,0.00020268,2]
[370371630,1751983851168,-1500.0,0.00020268,2]
[370371631,1751983851178,-1500.0,0.00020268,2]
[370371632,1751983851188,-1500.0,0.00020268,2]
[370371633,1751983851198,-460.0,0.00020273,2]
[370371634,1751983851207,-460.0,0.00020273,2]
[370371635,1751983851217,-540.0,0.00020273,2]
[370371636,1751983851227,-608.54,0.00020273,2]
[370371637,1751983851236,-471.73,0.00020273,2]
[370371638,1751983851246,-460.0,0.00020273,2]
[370371639,1751983851256,-460.0,0.00020273,2]
[370371640,1751983851265,-474.19700942,0.00020273,2]
[370371641,1751983851275,-460.0,0.00020273,2]
[370371642,1751983851284,-551.19,0.00020273,2]
[370371643,1751983851294,-460.0,0.00020273,2]
[370371644,1751983851304,-460.0,0.00020273,2]
[370371645,1751983851314,-651.0,0.00020273,2]
[370371646,1751983851323,-958.86,0.00020273,2]
[370371647,1751983851333,-151.0,0.00020273,2]
[370371648,1751983851342,-460.0,0.00020273,2]
[370371649,1751983851352,-636.73,0.00020273,2]
[370371650,1751983851361,-460.0,0.00020273,2]
[370371651,1751983851371,-460.0,0.00020273,2]
[370371652,1751983851381,-769.3,0.00020273,2]
[370371653,1751983851391,-460.0,0.00020273,2]
[370371654,1751983851401,-460.0,0.00020273,2]
[370371655,1751983851412,-638.06,0.00020273,2]
[370371656,1751983851421,-460.0,0.00020273,2]
[370371657,1751983851431,-460.0,0.00020273,2]
[370371658,1751983851441,-460.0,0.00020273,2]
[370371659,1751983851450,-495.68,0.00020273,2]
[370371660,1751983851460,-460.0,0.00020273,2]
[370371661,1751983851470,-460.0,0.00020273,2]
[370371662,1751983851479,-460.0,0.00020273,2]
[370371663,1751983851489,-460.0,0.00020273,2]
[370371664,1751983851498,-1163.67,0.00020273,2]
[370371665,1751983851508,-460.0,0.00020273,2]
[370371666,1751983851519,-208.51897562,0.00020273,2]
[370371667,1751983851528,-461.68,0.00020273,2]
[370371668,1751983851538,-460.0,0.00020273,2]
[370371669,1751983851548,-460.0,0.00020273,2]
[370371670,1751983851558,-593.12,0.00020273,2]
[370371671,1751983851568,-460.0,0.00020273,2]
[370371672,1751983851578,-756.52,0.00020273,2]
[370371673,1751983851588,-460.0,0.00020273,2]
[370371674,1751983851598,-488.13,0.00020273,2]
[370371675,1751983851607,-1004.35,0.00020273,2]
[370371676,1751983851617,-460.0,0.00020273,2]
[370371677,1751983851626,-1589.41,0.00020273,2]
[370371678,1751983851636,-460.0,0.00020273,2]
[370371679,1751983851645,-460.0,0.00020273,2]
[370371680,1751983851655,-460.0,0.00020273,2]
[370371681,1751983851664,-460.0,0.00020273,2]
[370371682,1751983851674,-460.0,0.00020273,2]
[370371683,1751983851683,-460.0,0.00020273,2]
[370371684,1751983851693,-2636.16,0.00020273,2]
[370371685,1751983851703,-460.39336776,0.00020273,2]
[370371686,1751983851713,-500.93030441,0.00020273,2]
[370371687,1751983851722,-460.0,0.00020273,2]
[370371688,1751983851731,-460.0,0.00020273,2]
[370371689,1751983851741,-460.0,0.00020273,2]
[370371690,1751983851750,-1295.21,0.00020273,2]
[370371691,1751983851760,-460.0,0.00020273,2]
[370371692,1751983851769,-6627.92,0.00020273,2]
[370371693,1751983851779,-460.0,0.00020273,2]
[370371694,1751983851788,-461.34,0.00020273,2]
[370371695,1751983851798,-460.0,0.00020273,2]
[370371696,1751983851807,-500.84,0.00020273,2]
[370371697,1751983851817,-717.97,0.00020273,2]
[370371698,1751983851827,-3262.07,0.00020273,2]
[370371699,1751983851836,-460.0,0.00020273,2]
[370371700,1751983851846,-460.0,0.00020273,2]
[370371701,1751983851868,-460.0,0.00020273,2]
[370371702,1751983851879,-1762.31,0.00020273,2]
[370371703,1751983851890,-903.25,0.00020273,2]
[370371704,1751983851902,-460.0,0.00020273,2]
[370371705,1751983851912,-460.0,0.00020273,2]
[370371706,1751983851923,-5827.89,0.00020273,2]
[370371707,1751983851933,-460.0,0.00020273,2]
[370371708,1751983851944,-933.44,0.00020273,2]
[370371709,1751983851954,-1582.35,0.00020273,2]
[370371710,1751983851965,-460.0,0.00020273,2]
[370371711,1751983851975,-460.0,0.00020273,2]
[370371712,1751983851986,-1015.36,0.00020273,2]
[370371713,1751983851997,-586.86,0.00020273,2]
[370371714,1751983852007,-460.0,0.00020273,2]
[370371715,1751983852018,-884.84,0.00020273,2]
[370371716,1751983852028,-850.53,0.00020273,2]
[370371717,1751983852038,-460.0,0.00020273,2]
[370371718,1751983852049,-460.0,0.00020273,2]
[370371719,1751983852059,-460.0,0.00020273,2]
[370371720,1751983852069,-460.0,0.00020273,2]
[370371721,1751983852080,-460.0,0.00020273,2]
[370371722,1751983852090,-460.0,0.00020273,2]
[370371723,1751983852100,-944.75,0.00020273,2]
[370371724,1751983852111,-604.48,0.00020273,2]
[370371725,1751983852121,-1927.49,0.00020273,2]
[370371726,1751983852131,-460.0,0.00020273,2]
[370371727,1751983852143,-151.0,0.00020273,2]
[370371728,1751983852154,-460.0,0.00020273,2]
[370371729,1751983852164,-460.0,0.00020273,2]
[370371730,1751983852175,-4200.32,0.00020273,2]
[370371731,1751983852185,-460.0,0.00020273,2]
[370371732,1751983852196,-1723.86,0.00020273,2]
[370371733,1751983852206,-460.0,0.00020273,2]
[370371734,1751983852218,-1105.47,0.00020273,2]
[370371735,1751983852229,-1235.45,0.00020273,2]
[370371736,1751983852239,-460.0,0.00020273,2]
[370371737,1751983852250,-500.0,0.00020273,2]
[370371738,1751983852260,-460.0,0.00020273,2]
[370371739,1751983852271,-1392.07,0.00020273,2]
[370371740,1751983852282,-460.0,0.00020273,2]
[370371741,1751983852293,-460.0,0.00020273,2]
[370371742,1751983852305,-460.0,0.00020273,2]
[370371743,1751983852506,-4502.23,0.00020273,2]
[370371744,1751983852516,-471.85,0.00020273,2]
[370371745,1751983852526,-871.65,0.00020273,2]
[370371746,1751983852535,-460.0,0.00020273,2]
[370371747,1751983852545,-967.31,0.00020273,2]
[370371748,1751983852555,-1518.02,0.00020273,2]
[370371749,1751983852564,-460.0,0.00020273,2]
[370371750,1751983852574,-460.0,0.00020273,2]
[370371751,1751983852583,-6907.07,0.00020273,2]
[370371752,1751983852593,-460.0,0.00020273,2]
[370371753,1751983852602,-460.0,0.00020273,2]
[370371754,1751983852612,-611.77,0.00020273,2]
[370371755,1751983852622,-460.0,0.00020273,2]
[370371756,1751983852632,-460.0,0.00020273,2]
[370371757,1751983852642,-1153.7,0.00020273,2]
[370371758,1751983852653,-1098.97,0.00020273,2]
[370371759,1751983852663,-967.64,0.00020273,2]
[370371760,1751983852673,-460.0,0.00020273,2]
[370371761,1751983852683,-460.0,0.00020273,2]
[370371762,1751983852693,-460.0,0.00020273,2]
[370371763,1751983852702,-151.0,0.00020273,2]
[370371764,1751983852711,-2085.57,0.00020273,2]
[370371765,1751983852720,-500.0,0.00020273,2]
[370371766,1751983852730,-460.0,0.00020273,2]
[370371767,1751983852739,-463.65,0.00020273,2]
[370371768,1751983852749,-2119.43,0.00020273,2]
[370371769,1751983852758,-566.22,0.00020273,2]
[370371770,1751983852767,-1205.75,0.00020273,2]
[370371771,1751983852777,-460.0,0.00020273,2]
[370371772,1751983852786,-1948.08,0.00020273,2]
[370371773,1751983852795,-460.0,0.00020273,2]
[370371774,1751983852805,-460.0,0.00020273,2]
[370371775,1751983852814,-2272.9,0.00020273,2]
[370371776,1751983852823,-4616.11,0.00020273,2]
[370371777,1751983852832,-4247.65,0.00020273,2]
[370371778,1751983852842,-460.0,0.00020273,2]
[370371779,1751983852851,-514.3,0.00020273,2]
[370371780,1751983852860,-653.52,0.00020273,2]
[370371781,1751983852870,-944.07,0.00020273,2]
[370371782,1751983852879,-847.56,0.00020273,2]
[370371783,1751983852889,-8781.99,0.00020273,2]
[370371784,1751983852900,-500.52,0.00020273,2]
[370371785,1751983852909,-460.0,0.00020273,2]
[370371786,1751983852919,-1078.93,0.00020273,2]
[370371787,1751983852928,-1410.35,0.00020273,2]
[370371788,1751983852938,-186.26157751,0.00020273,2]
[370371789,1751983852948,-460.0,0.00020273,2]
[370371790,1751983852957,-460.0,0.00020273,2]
[370371791,1751983852967,-4842.26,0.00020273,2]
[370371792,1751983852977,-1487.97,0.00020273,2]
[370371793,1751983852987,-1632.92,0.00020273,2]
[370371794,1751983852997,-1835.67,0.00020273,2]
[370371795,1751983853007,-2207.44,0.00020273,2]
[370371796,1751983853016,-460.0,0.00020273,2]
[370371797,1751983853026,-460.0,0.00020273,2]
[370371798,1751983853035,-460.0,0.00020273,2]
[370371799,1751983853045,-460.0,0.00020273,2]
[370371800,1751983853054,-651.0,0.000203,2]
[370371801,1751983853063,-151.0,0.000203,2]
[370371802,1751983853072,-500.0,0.000203,2]
[370371803,1751983853081,-151.0,0.000203,2]
[370371804,1751983853091,-500.0,0.000203,2]
[370371805,1751983853100,-259.0,0.00020303,2]
[370371806,1751983853110,-651.0,0.00020328,2]
[370371807,1751983853119,-260.6982825,0.00020328,2]
[370371808,1751983853128,-500.0,0.00020328,2]
[370371809,1751983853141,-151.0,0.00020328,2]
[370371810,1751983853152,-500.0,0.00020328,2]
[370371811,1751983853162,-651.0,0.00020355,2]
[370371812,1751983853171,-500.0,0.00020355,2]
[370371813,1751983853183,-245.0,0.00020355,2]
[370371814,1751983853193,-500.0,0.00020355,2]
[370371815,1751983853202,-651.0,0.00020383,2]
[370371816,1751983853214,-605.16461328,0.00020383,2]
[370371817,1751983853224,-500.0,0.00020383,2]
[370371818,1751983853234,-651.0,0.0002041,2]
[370371819,1751983853243,-500.0,0.0002041,2]
[370371820,1751983853253,-651.0,0.00020437,2]
[370371821,1751983853262,-166.84273122,0.00020437,2]
[370371822,1751983853272,-420.0,0.00020464,2]
[370371823,1751983853281,-651.0,0.00020465,2]
[370371824,1751983853292,-259.0,0.0002048,2]
[370371825,1751983853303,-259.0,0.00020483,2]
[370371826,1751983853313,-2200.0,0.00020488,2]
[370371827,1751983853323,-651.0,0.00020492,2]
[370371828,1751983853332,-259.0,0.000205,2]
[370371829,1751983853342,-2000.0,0.00020516,2]
[370371830,1751983853352,-651.0,0.0002052,2]
[370371831,1751983853362,-1000.0,0.00020521,2]
[370371832,1751983853371,-637.68146642,0.00020521,2]
[370371833,1751983853380,-383.81540028,0.00020521,2]
[370371834,1751983853390,-655.15941754,0.00020521,2]
[370371835,1751983853400,-892.70875722,0.00020521,2]
[370371836,1751983853409,-1000.0,0.00020521,2]
[370371837,1751983853418,-1000.0,0.00020521,2]
[370371838,1751983853427,-1000.0,0.00020521,2]
[370371839,1751983853437,-500.0,0.00020521,2]
[370371840,1751983853446,-1000.0,0.00020521,2]
[370371841,1751983853455,-1000.0,0.00020521,2]
[370371842,1751983853464,-1000.0,0.00020521,2]
[370371843,1751983853474,-1200.0,0.00020521,2]
[370371844,1751983853483,-154.52648661,0.00020521,2]
[370371845,1751983853492,-1000.0,0.00020521,2]
[370371846,1751983853502,-500.0,0.00020521,2]
[370371847,1751983853511,-1000.0,0.00020521,2]
[370371848,1751983853521,-1000.0,0.00020521,2]
[370371849,1751983853531,-1000.0,0.00020521,2]
[370371850,1751983853540,-1000.0,0.00020521,2]
[370371851,1751983853549,-259.0,0.00020544,2]
[370371852,1751983853558,-651.0,0.00020547,2]
[370371853,1751983853567,-460.0,0.00020547,2]
[370371854,1751983853576,-334.05979574,0.00020547,2]
[370371855,1751983853585,-608.54,0.00020547,2]
[370371856,1751983853595,-471.73,0.00020547,2]
[370371857,1751983853605,-467.62242768,0.00020547,2]
[370371858,1751983853614,-460.0,0.00020547,2]
[370371859,1751983853624,-460.0,0.00020547,2]
[370371860,1751983853633,-551.19,0.00020547,2]
[370371861,1751983853642,-460.0,0.00020547,2]
[370371862,1751983853652,-460.0,0.00020547,2]
[370371863,1751983853661,-958.86,0.00020547,2]
[370371864,1751983853671,-460.0,0.00020547,2]
[370371865,1751983853681,-636.73,0.00020547,2]
[370371866,1751983853690,-460.0,0.00020547,2]
[370371867,1751983853699,-460.0,0.00020547,2]
[370371868,1751983853708,-769.3,0.00020547,2]
[370371869,1751983853717,-460.0,0.00020547,2]
[370371870,1751983853726,-273.28744193,0.00020547,2]
[370371871,1751983853736,-638.06,0.00020547,2]
[370371872,1751983853745,-460.0,0.00020547,2]
[370371873,1751983853759,-460.0,0.00020547,2]
[370371874,1751983853769,-460.0,0.00020547,2]
[370371875,1751983853778,-495.68,0.00020547,2]
[370371876,1751983853788,-460.0,0.00020547,2]
[370371877,1751983853798,-460.0,0.00020547,2]
[370371878,1751983853807,-460.0,0.00020547,2]
[370371879,1751983853817,-460.0,0.00020547,2]
[370371880,1751983853827,-1163.67,0.00020547,2]
[370371881,1751983853836,-460.0,0.00020547,2]
[370371882,1751983853846,-460.0,0.00020547,2]
[370371883,1751983853856,-460.0,0.00020547,2]
[370371884,1751983853865,-593.12,0.00020547,2]
[370371885,1751983853875,-460.0,0.00020547,2]
[370371886,1751983853885,-756.52,0.00020547,2]
[370371887,1751983853894,-460.0,0.00020547,2]
[370371888,1751983853908,-488.13,0.00020547,2]
[370371889,1751983853918,-1004.35,0.00020547,2]
[370371890,1751983853927,-460.0,0.00020547,2]
[370371891,1751983853937,-1589.41,0.00020547,2]
[370371892,1751983853946,-460.0,0.00020547,2]
[370371893,1751983853956,-460.0,0.00020547,2]
[370371894,1751983853966,-460.0,0.00020547,2]
[370371895,1751983853975,-460.0,0.00020547,2]
[370371896,1751983853984,-460.0,0.00020547,2]
[370371897,1751983853994,-460.0,0.00020547,2]
[370371898,1751983854003,-2636.16,0.00020547,2]
[370371899,1751983854012,-460.0,0.00020547,2]
[370371900,1751983854022,-460.0,0.00020547,2]
[370371901,1751983854031,-460.0,0.00020547,2]
[370371902,1751983854041,-1295.21,0.00020547,2]
[370371903,1751983854050,-6627.92,0.00020547,2]
[370371904,1751983854060,-460.0,0.00020547,2]
[370371905,1751983854069,-461.34,0.00020547,2]
[370371906,1751983854079,-460.0,0.00020547,2]